fUST/lending_fUST_20241211
["ID","MTS","AMOUNT","RATE_DAILY","PERIOD"]
[344868966,1733846600275,4000.2933308,0.000201,2]
[344868969,1733846608538,2000.6396497,0.000201,2]
[344869038,1733847035214,-500.0,0.00020445,2]
[344869040,1733847035224,-250.0,0.00020548,2]
[344869042,1733847035234,-500.0,0.00021521,2]
[344869043,1733847035244,-500.0,0.00022653,2]
[344869045,1733847035254,-500.0,0.00023846,2]
[344869047,1733847035264,-157.62,0.0002499,2]
[344869048,1733847035274,-300.0,0.00024999,2]
[344869049,1733847035283,-300.0,0.00024999,2]
[344869050,1733847035292,-150.0,0.00025,2]
[344869051,1733847035301,-15553.27393516,0.00025,5]
[344869052,1733847035311,-1443.93915033,0.00025,2]
[344869053,1733847035320,-513.236974,0.00025,17]
[344869054,1733847035331,-2262.0,0.00025,2]
[344869055,1733847035340,-734.1492116,0.00025026,2]
[344869056,1733847035350,-500.0,0.00025038,2]
[344869057,1733847035359,-222.855013,0.000255,2]
[344869058,1733847035369,-150.131,0.00025687,2]
[344869059,1733847035379,-150.189,0.00025687,2]
[344869060,1733847035388,-500.0,0.0002629,2]
[344869061,1733847035397,-1115.04735672,0.000264,2]
[344869063,1733847035406,-151.22903714,0.000264,2]
[344869065,1733847035415,-9342.32932185,0.000265,7]
[344869069,1733847035447,-40657.67067815,0.000265,7]
[344869070,1733847035462,-27455.0,0.000265,2]
[344869071,1733847035472,-5487.09559144,0.00026518,2]
[344869072,1733847035482,-151.22903713,0.00026575,2]
[344869073,1733847035492,-298.12327044,0.00026649,2]
[344869074,1733847035503,-5487.09559144,0.00026731,2]
[344869075,1733847035514,-195.60405147,0.00026749,2]
[344869076,1733847035524,-500.0,0.00026848,2]
[344869077,1733847035535,-500.0,0.00026848,2]
[344869078,1733847035544,-500.0,0.00026848,2]
[344869079,1733847035554,-195.36214708,0.00026848,2]
[344869080,1733847035564,-500.0,0.00026848,2]
[344869081,1733847035574,-500.0,0.00026848,2]
[344869082,1733847035584,-500.0,0.00026848,2]
[344869083,1733847035594,-402.54309648,0.00026848,2]
[344869084,1733847035606,-500.0,0.00026848,2]
[344869085,1733847035615,-500.0,0.00026848,2]
[344869086,1733847035627,-500.0,0.00026848,2]
[344869087,1733847035649,-500.0,0.00026848,2]
[344869088,1733847035661,-500.0,0.00026848,2]
[344869089,1733847035671,-500.0,0.00026848,2]
[344869090,1733847035681,-500.0,0.00026848,2]
[344869091,1733847035692,-500.0,0.00026848,2]
[344869092,1733847035702,-500.0,0.00026848,2]
[344869093,1733847035722,-500.0,0.00026848,2]
[344869094,1733847035738,-500.0,0.00026848,2]
[344869095,1733847035748,-500.0,0.00026848,2]
[344869096,1733847035759,-500.0,0.00026848,2]
[344869097,1733847035770,-500.0,0.00026848,2]
[344869098,1733847035780,-500.0,0.00026848,2]
[344869099,1733847035790,-500.0,0.00026848,2]
[344869100,1733847035800,-500.0,0.00026848,2]
[344869101,1733847035810,-500.0,0.00026848,2]
[344869102,1733847035908,-500.0,0.00026848,2]
[344869103,1733847035918,-500.0,0.00026848,2]
[344869104,1733847035929,-427.46247238,0.00026848,2]
[344869105,1733847035938,-251.71983704,0.00026848,2]
[344869106,1733847035948,-260.52672425,0.00026848,2]
[344869107,1733847035964,-553.32241724,0.00026848,2]
[344869108,1733847035975,-23662.92635462,0.00026849,2]
[344869109,1733847035985,-165.8529329,0.00026849,2]
[344869110,1733847035996,-19670.31123834,0.00026849,10]
[344869111,1733847036011,-172951.65767838,0.00026849,10]
[344869112,1733847036022,-268.734,0.00026849,14]
[344869113,1733847036033,-203.58719827,0.00026849,14]
[344869114,1733847036043,-469.61402128,0.00026873,2]
[344869115,1733847036053,-1115.04735665,0.00026899,2]
[344869116,1733847036064,-420.0,0.00027082,2]
[344869117,1733847036075,-351.2291458,0.00027123,2]
[344869118,1733847036085,-351.2291458,0.00027123,2]
[344869119,1733847036095,-351.2291458,0.00027123,2]
[344869120,1733847036105,-200.8258627,0.00027123,2]
[344869121,1733847036115,-500.0,0.00027397,7]
[344869122,1733847036125,-1115.04735665,0.00027399,2]
[344869123,1733847036135,-298.12327041,0.00027412,2]
[344869124,1733847036145,-160.0,0.0002746,3]
[344869125,1733847036154,-439.232,0.0002755,2]
[344869126,1733847036165,-500.0,0.00027604,5]
[344869127,1733847036175,-1115.04735665,0.00027898,2]
[344869128,1733847036186,-187.0,0.00028,2]
[344869129,1733847036197,-223.44247742,0.00028,2]
[344869130,1733847036214,-151.0,0.00028165,6]
[344869131,1733847036224,-298.12327041,0.00028175,2]
[344869132,1733847036234,-152.68,0.00028275,3]
[344869133,1733847036244,-153.0,0.00028356,30]
[344869134,1733847036254,-153.0,0.00028356,30]
[344869135,1733847036265,-153.0,0.00028356,30]
[344869136,1733847036275,-153.0,0.00028356,30]
[344869137,1733847036285,-1115.04735665,0.00028398,2]
[344869138,1733847036296,-151.0,0.00028582,7]
[344869139,1733847036306,-160.0,0.00028741,4]
[344869140,1733847036315,-500.0,0.00028767,9]
[344869141,1733847036325,-28888.72013944,0.00028896,2]
[344869142,1733847036334,-1115.04735665,0.00028897,2]
[344869143,1733847036346,-298.12327041,0.00028937,2]
[344869144,1733847036356,-2856.36072926,0.00029,7]
[344869145,1733847036366,-20033.39829,0.00029,10]
[344869146,1733847036376,-250.0,0.00029,120]
[344869147,1733847036385,-2563.18679965,0.00029,30]
[344869148,1733847036395,-10758.00363448,0.00029,14]
[344869149,1733847036405,-1000.0,0.00029,29]
[344869150,1733847036414,-151.0,0.00029,7]
[344869151,1733847036424,-302.78807257,0.00029,2]
[344869152,1733847036434,-579.357094,0.00029,7]
[344869153,1733847036443,-579.357094,0.00029,7]
[344869154,1733847036453,-151.0,0.00029,7]
[344869155,1733847036471,-302.78807257,0.00029,2]
[344869156,1733847036481,-214.0,0.0002918,26]
[344869157,1733847036491,-150.0,0.00029222,120]
[344869158,1733847036501,-222.855013,0.00029274,2]
[344869159,1733847036510,-302.78807257,0.0002929,2]
[344869160,1733847036520,-302.78807257,0.0002929,2]
[344869161,1733847036530,-587.0,0.00029339,2]
[344869162,1733847036539,-1115.04735665,0.00029397,2]
[344869163,1733847036549,-302.78807257,0.0002958,2]
[344869164,1733847036558,-302.78807257,0.0002958,2]
[344869165,1733847036568,-500.0,0.000296,120]
[344869166,1733847036579,-151.0,0.000296,12]
[344869167,1733847036589,-2186.61031883,0.0002961,3]
[344869168,1733847036599,-102254.81937443,0.000297,2]
[344869169,1733847036608,-298.12327041,0.000297,2]
[344869170,1733847036618,-579.357094,0.000297,7]
[344869171,1733847036627,-579.357094,0.000297,7]
[344869172,1733847036637,-151.0,0.000297,7]
[344869173,1733847036650,-310.1047578,0.0002973,2]
[344869174,1733847036693,-695.52731635,0.0002973,2]
[344869175,1733847036707,-525.84552153,0.00029763,2]
[344869176,1733847036720,-191.51,0.00029763,7]
[344869177,1733847036730,-515.814,0.00029763,7]
[344869178,1733847036740,-515.814,0.00029763,7]
[344869179,1733847036750,-515.814,0.00029763,7]
[344869180,1733847036759,-515.814,0.00029763,7]
[344869181,1733847036769,-515.814,0.00029763,7]
[344869182,1733847036779,-515.814,0.00029763,7]
[344869183,1733847036790,-515.814,0.00029763,7]
[344869184,1733847036799,-515.814,0.00029763,7]
[344869185,1733847036808,-515.814,0.00029763,7]
[344869186,1733847036817,-515.814,0.00029763,7]
[344869187,1733847036827,-515.814,0.00029763,7]
[344869188,1733847036837,-515.814,0.00029763,7]
[344869189,1733847036846,-515.814,0.00029763,7]
[344869190,1733847036856,-515.814,0.00029763,7]
[344869191,1733847036866,-500.72210442,0.00029763,7]
[344869192,1733847036882,-15.09189558,0.00029763,7]
[344869193,1733847036891,-359.90808442,0.00029763,7]
[344869207,1733847038512,-151.22903713,0.00026749,2]
[344869208,1733847038522,-155.90591558,0.00029763,7]
[344869209,1733847038532,-515.814,0.00029763,7]
[344869210,1733847038541,-515.814,0.00029763,7]
[344869211,1733847038550,-515.814,0.00029763,7]
[344869212,1733847038560,-515.81,0.00029763,7]
[344869213,1733847038569,-773.721,0.00029763,7]
[344869214,1733847038579,-773.721,0.00029763,7]
[344869215,1733847038588,-773.721,0.00029763,7]
[344869216,1733847038597,-773.721,0.00029763,7]
[344869217,1733847038607,-773.721,0.00029763,7]
[344869218,1733847038616,-773.721,0.00029763,7]
[344869219,1733847038626,-773.721,0.00029763,7]
[344869221,1733847038635,-773.721,0.00029763,7]
[344869222,1733847038645,-773.721,0.00029763,7]
[344869223,1733847038657,-773.721,0.00029763,7]
[344869224,1733847038667,-773.721,0.00029763,7]
[344869226,1733847038676,-773.721,0.00029763,7]
[344869228,1733847038687,-773.721,0.00029763,7]
[344869229,1733847038698,-773.721,0.00029763,7]
[344869232,1733847038712,-773.721,0.00029763,7]
[344869234,1733847038723,-773.721,0.00029763,7]
[344869236,1733847038733,-773.721,0.00029763,7]
[344869237,1733847038743,-773.721,0.00029763,7]
[344869240,1733847038753,-773.721,0.00029763,7]
[344869242,1733847038763,-773.72,0.00029763,7]
[344869244,1733847038772,-666.0,0.00029763,2]
[344869246,1733847038782,-5587.14544603,0.00029763,21]
[344869248,1733847038792,-525.84552148,0.00029778,2]
[344869250,1733847038802,-525.84552148,0.00029793,2]
[344869252,1733847038811,-995.48,0.000298,30]
[344869254,1733847038821,-2000.0,0.000298,30]
[344869255,1733847038831,-525.84552148,0.00029807,2]
[344869257,1733847038840,-525.84552148,0.00029822,2]
[344869260,1733847038850,-525.84552148,0.00029837,2]
[344869261,1733847038859,-150.5,0.0002984,120]
[344869263,1733847038868,-150.5,0.0002985,120]
[344869266,1733847038878,-525.84552148,0.00029852,2]
[344869268,1733847038888,-2500.0,0.00029853,3]
[344869269,1733847038898,-150.5,0.0002986,120]
[344869271,1733847038908,-2500.0,0.00029862,3]
[344869273,1733847038918,-1208.44,0.00029863,7]
[344869275,1733847038927,-1208.44,0.00029863,7]
[344869277,1733847038936,-1208.44,0.00029863,7]
[344869279,1733847038946,-1208.44,0.00029863,7]
[344869281,1733847038955,-1208.44,0.00029863,7]
[344869283,1733847038970,-1208.44,0.00029863,7]
[344869285,1733847038979,-1208.44,0.00029863,7]
[344869288,1733847038991,-1208.44,0.00029863,7]
[344869290,1733847039001,-1208.44,0.00029863,7]
[344869292,1733847039010,-1208.44,0.00029863,7]
[344869293,1733847039019,-1208.44,0.00029863,7]
[344869296,1733847039029,-1208.44,0.00029863,7]
[344869298,1733847039038,-501.27110936,0.00029863,7]
[344869299,1733847039047,-500.0,0.00029863,7]
[344869301,1733847039056,-500.0,0.00029863,7]
[344869303,1733847039066,-500.0,0.00029863,7]
[344869306,1733847039076,-500.0,0.00029863,7]
[344869308,1733847039086,-352.60433345,0.00029863,7]
[344869310,1733847039096,-500.0,0.00029863,7]
[344869312,1733847039105,-500.0,0.00029863,7]
[344869314,1733847039115,-586.53029626,0.00029863,7]
[344869316,1733847039124,-500.0,0.00029863,7]
[344869318,1733847039134,-231.59661652,0.00029863,7]
[344869320,1733847039144,-500.0,0.00029863,7]
[344869322,1733847039153,-504.23424272,0.00029863,7]
[344869324,1733847039163,-544.72959625,0.00029863,7]
[344869326,1733847039172,-500.0,0.00029863,7]
[344869328,1733847039181,-500.0,0.00029863,7]
[344869330,1733847039191,-501.84977759,0.00029863,7]
[344869332,1733847039200,-500.0,0.00029863,7]
[344869334,1733847039211,-500.0,0.00029863,7]
[344869336,1733847039221,-500.0,0.00029863,7]
[344869337,1733847039230,-537.77036391,0.00029863,7]
[344869339,1733847039239,-518.81972949,0.00029863,7]
[344869341,1733847039249,-500.0,0.00029863,7]
[344869343,1733847039259,-500.0,0.00029863,7]
[344869346,1733847039269,-500.0,0.00029863,7]
[344869347,1733847039279,-500.0,0.00029863,7]
[344869349,1733847039289,-500.0,0.00029863,7]
[344869352,1733847039298,-500.0,0.00029863,7]
[344869354,1733847039308,-161.85851262,0.00029863,7]
[344869355,1733847039317,-500.0,0.00029863,7]
[344869357,1733847039327,-607.65404529,0.00029863,7]
[344869360,1733847039336,-481.65431387,0.00029863,7]
[344869370,1733847039423,-500.0,0.00029863,7]
[344869372,1733847039433,-502.46888055,0.00029863,7]
[344869374,1733847039442,-500.0,0.00029863,7]
[344869376,1733847039452,-577.69520286,0.00029863,7]
[344869378,1733847039466,-500.0,0.00029863,7]
[344869380,1733847039476,-500.0,0.00029863,7]
[344869382,1733847039486,-500.0,0.00029863,7]
[344869384,1733847039496,-500.0,0.00029863,7]
[344869386,1733847039506,-500.0,0.00029863,7]
[344869388,1733847039516,-500.0,0.00029863,7]
[344869391,1733847039526,-500.0,0.00029863,7]
[344869392,1733847039536,-331.90862343,0.00029863,7]
[344869394,1733847039546,-633.76564906,0.00029863,7]
[344869397,1733847039555,-500.0,0.00029863,7]
[344869399,1733847039566,-500.0,0.00029863,7]
[344869401,1733847039575,-500.0,0.00029863,7]
[344869403,1733847039585,-505.56622693,0.00029863,7]
[344869405,1733847039595,-500.0,0.00029863,7]
[344869407,1733847039604,-510.98883364,0.00029863,7]
[344869409,1733847039614,-506.45779299,0.00029863,7]
[344869411,1733847039624,-500.0,0.00029863,7]
[344869413,1733847039634,-501.54559939,0.00029863,7]
[344869415,1733847039646,-500.0,0.00029863,7]
[344869417,1733847039664,-500.0,0.00029863,7]
[344869419,1733847039681,-502.77072055,0.00029863,7]
[344869421,1733847039694,-500.0,0.00029863,7]
[344869423,1733847039704,-500.0,0.00029863,7]
[344869425,1733847039719,-500.0,0.00029863,7]
[344869427,1733847039728,-500.0,0.00029863,7]
[344869429,1733847039738,-500.0,0.00029863,7]
[344869431,1733847039747,-357.8579733,0.00029863,7]
[344869433,1733847039756,-285.42994939,0.00029863,7]
[344869435,1733847039766,-500.0,0.00029863,7]
[344869437,1733847039776,-240.37744972,0.00029863,7]
[344869439,1733847039785,-502.16021202,0.00029863,7]
[344869441,1733847039795,-505.95954467,0.00029863,7]
[344869443,1733847039805,-500.0,0.00029863,7]
[344869445,1733847039815,-502.46957634,0.00029863,7]
[344869448,1733847039824,-500.0,0.00029863,7]
[344869450,1733847039834,-255.81863008,0.00029863,7]
[344869452,1733847039844,-500.0,0.00029863,7]
[344869454,1733847039853,-500.0,0.00029863,7]
[344869456,1733847039863,-500.0,0.00029863,7]
[344869458,1733847039872,-500.0,0.00029863,7]
[344869460,1733847039884,-500.0,0.00029863,7]
[344869462,1733847039895,-215.23618979,0.00029863,7]
[344869464,1733847039907,-500.0,0.00029863,7]
[344869466,1733847039916,-500.0,0.00029863,7]
[344869468,1733847039925,-508.50777826,0.00029863,7]
[344869470,1733847039935,-500.0,0.00029863,7]
[344869472,1733847039944,-500.0,0.00029863,7]
[344869474,1733847039954,-500.0,0.00029863,7]
[344869476,1733847039969,-500.0,0.00029863,7]
[344869478,1733847039979,-500.0,0.00029863,7]
[344869480,1733847039988,-500.0,0.00029863,7]
[344869482,1733847039998,-500.0,0.00029863,7]
[344869484,1733847040008,-500.0,0.00029863,7]
[344869486,1733847040017,-506.70592657,0.00029863,7]
[344869489,1733847040027,-500.0,0.00029863,7]
[344869490,1733847040036,-500.0,0.00029863,7]
[344869492,1733847040046,-500.0,0.00029863,7]
[344869495,1733847040056,-500.0,0.00029863,7]
[344869497,1733847040065,-574.32028116,0.00029863,7]
[344869498,1733847040075,-500.0,0.00029863,7]
[344869501,1733847040084,-503.85115499,0.00029863,7]
[344869502,1733847040094,-500.0,0.00029863,7]
[344869504,1733847040104,-500.0,0.00029863,7]
[344869506,1733847040114,-500.0,0.00029863,7]
[344869508,1733847040123,-500.0,0.00029863,7]
[344869510,1733847040132,-500.0,0.00029863,7]
[344869512,1733847040141,-504.50751221,0.00029863,7]
[344869514,1733847040150,-500.0,0.00029863,7]
[344869516,1733847040160,-334.96795742,0.00029863,7]
[344869518,1733847040170,-500.0,0.00029863,7]
[344869520,1733847040179,-507.65611073,0.00029863,7]
[344869523,1733847040189,-595.86434775,0.00029863,7]
[344869525,1733847040199,-567.84677321,0.00029863,7]
[344869527,1733847040212,-348.2386319,0.00029863,7]
[344869529,1733847040222,-500.0,0.00029863,2]
[344869531,1733847040231,-305.66690693,0.00029863,2]
[344869533,1733847040240,-500.0,0.00029863,7]
[344869535,1733847040251,-500.0,0.00029863,7]
[344869537,1733847040261,-500.0,0.00029863,7]
[344869539,1733847040271,-500.0,0.00029863,7]
[344869541,1733847040282,-503.48136077,0.00029863,7]
[344869543,1733847040291,-500.0,0.00029863,7]
[344869545,1733847040301,-519.41202779,0.00029863,7]
[344869547,1733847040311,-500.0,0.00029863,7]
[344869548,1733847040322,-500.0,0.00029863,7]
[344869550,1733847040331,-500.0,0.00029863,7]
[344869552,1733847040340,-500.0,0.00029863,7]
[344869554,1733847040349,-500.0,0.00029863,7]
[344869556,1733847040359,-500.0,0.00029863,7]
[344869558,1733847040368,-500.0,0.00029863,7]
[344869560,1733847040377,-500.0,0.00029863,7]
[344869562,1733847040387,-500.0,0.00029863,7]
[344869564,1733847040396,-500.0,0.00029863,7]
[344869566,1733847040405,-152.71881673,0.00029863,7]
[344869568,1733847040415,-507.37423237,0.00029863,7]
[344869570,1733847040424,-500.0,0.00029863,7]
[344869572,1733847040433,-500.0,0.00029863,7]
[344869575,1733847040443,-500.0,0.00029863,7]
[344869576,1733847040453,-397.00846659,0.00029863,7]
[344869579,1733847040468,-500.0,0.00029863,7]
[344869581,1733847040479,-548.63734812,0.00029863,7]
[344869583,1733847040488,-500.99942269,0.00029863,7]
[344869585,1733847040497,-500.0,0.00029863,7]
[344869587,1733847040508,-500.0,0.00029863,7]
[344869589,1733847040518,-500.0,0.00029863,7]
[344869591,1733847040528,-500.0,0.00029863,7]
[344869593,1733847040537,-500.0,0.00029863,7]
[344869595,1733847040547,-500.0,0.00029863,7]
[344869596,1733847040556,-500.0,0.00029863,7]
[344869600,1733847040583,-500.0,0.00029863,7]
[344869602,1733847040593,-500.0,0.00029863,7]
[344869604,1733847040602,-500.0,0.00029863,7]
[344869606,1733847040612,-500.0,0.00029863,7]
[344869608,1733847040621,-511.47765577,0.00029863,7]
[344869616,1733847040690,-400.80107386,0.00029863,7]
[344869619,1733847040713,-608.00734289,0.00029863,7]
[344869621,1733847040725,-500.0,0.00029863,7]
[344869623,1733847040736,-500.0,0.00029863,7]
[344869625,1733847040746,-500.0,0.00029863,7]
[344869627,1733847040756,-588.71423348,0.00029863,7]
[344869629,1733847040766,-500.0,0.00029863,7]
[344869631,1733847040775,-498.20143836,0.00029863,7]
[344869633,1733847040785,-500.0,0.00029863,7]
[344869635,1733847040795,-500.0,0.00029863,7]
[344869637,1733847040804,-505.42967457,0.00029863,7]
[344869639,1733847040814,-500.0,0.00029863,7]
[344869641,1733847040824,-500.0,0.00029863,7]
[344869643,1733847040833,-540.01704155,0.00029863,7]
[344869644,1733847040842,-500.0,0.00029863,7]
[344869645,1733847040851,-500.0,0.00029863,7]
[344869646,1733847040860,-500.0,0.00029863,7]
[344869647,1733847040870,-500.0,0.00029863,7]
[344869648,1733847040879,-500.0,0.00029863,7]
[344869649,1733847040888,-500.0,0.00029863,7]
[344869650,1733847040898,-500.0,0.00029863,7]
[344869651,1733847040907,-500.0,0.00029863,7]
[344869652,1733847040916,-554.15565532,0.00029863,7]
[344869653,1733847040925,-500.0,0.00029863,7]
[344869654,1733847040934,-500.0,0.00029863,7]
[344869655,1733847040943,-500.0,0.00029863,7]
[344869656,1733847040952,-500.0,0.00029863,7]
[344869657,1733847040968,-500.0,0.00029863,7]
[344869658,1733847040978,-500.0,0.00029863,7]
[344869660,1733847040988,-500.0,0.00029863,7]
[344869662,1733847040997,-500.0,0.00029863,7]
[344869663,1733847041010,-500.0,0.00029863,7]
[344869665,1733847041019,-500.0,0.00029863,7]
[344869667,1733847041028,-500.0,0.00029863,7]
[344869669,1733847041038,-500.0,0.00029863,7]
[344869671,1733847041047,-461.23057397,0.00029863,7]
[344869673,1733847041057,-507.62669419,0.00029863,7]
[344869675,1733847041066,-500.0,0.00029863,7]
[344869677,1733847041076,-500.0,0.00029863,7]
[344869679,1733847041086,-500.0,0.00029863,7]
[344869681,1733847041096,-500.0,0.00029863,7]
[344869683,1733847041106,-500.0,0.00029863,7]
[344869685,1733847041115,-500.0,0.00029863,7]
[344869688,1733847041125,-500.0,0.00029863,7]
[344869690,1733847041135,-500.0,0.00029863,7]
[344869692,1733847041144,-500.74616518,0.00029863,7]
[344869694,1733847041153,-500.0,0.00029863,7]
[344869696,1733847041163,-500.0,0.00029863,7]
[344869698,1733847041173,-500.0,0.00029863,7]
[344869700,1733847041182,-500.0,0.00029863,7]
[344869702,1733847041191,-501.87249475,0.00029863,7]
[344869704,1733847041201,-500.0,0.00029863,7]
[344869705,1733847041214,-500.0,0.00029863,7]
[344869707,1733847041223,-500.0,0.00029863,7]
[344869709,1733847041233,-500.0,0.00029863,7]
[344869711,1733847041242,-500.0,0.00029863,7]
[344869713,1733847041252,-500.0,0.00029863,7]
[344869716,1733847041263,-500.0,0.00029863,7]
[344869718,1733847041273,-500.0,0.00029863,7]
[344869719,1733847041282,-500.0,0.00029863,7]
[344869721,1733847041292,-500.0,0.00029863,7]
[344869723,1733847041302,-554.41990073,0.00029863,7]
[344869725,1733847041311,-500.0,0.00029863,7]
[344869727,1733847041322,-500.0,0.00029863,7]
[344869730,1733847041337,-571.53921809,0.00029863,7]
[344869731,1733847041346,-503.84685523,0.00029863,7]
[344869734,1733847041356,-500.0,0.00029863,7]
[344869735,1733847041365,-500.0,0.00029863,7]
[344869738,1733847041375,-499.53845443,0.00029863,7]
[344869739,1733847041384,-500.0,0.00029863,7]
[344869741,1733847041395,-500.0,0.00029863,7]
[344869743,1733847041406,-500.0,0.00029863,7]
[344869745,1733847041416,-211.44137777,0.00029863,7]
[344869747,1733847041425,-500.0,0.00029863,7]
[344869749,1733847041435,-502.69888959,0.00029863,7]
[344869751,1733847041445,-500.0,0.00029863,7]
[344869754,1733847041455,-500.0,0.00029863,7]
[344869755,1733847041469,-503.90413832,0.00029863,7]
[344869758,1733847041479,-404.13857574,0.00029863,7]
[344869759,1733847041488,-500.0,0.00029863,7]
[344869761,1733847041498,-500.0,0.00029863,7]
[344869764,1733847041508,-505.91146793,0.00029863,7]
[344869765,1733847041518,-500.0,0.00029863,7]
[344869768,1733847041528,-510.82291612,0.00029863,7]
[344869770,1733847041538,-502.13265388,0.00029863,7]
[344869772,1733847041548,-500.0,0.00029863,7]
[344869774,1733847041558,-507.75753618,0.00029863,7]
[344869776,1733847041567,-440.97207609,0.00029863,7]
[344869777,1733847041576,-538.40698048,0.00029863,7]
[344869779,1733847041585,-500.0,0.00029863,7]
[344869781,1733847041595,-500.0,0.00029863,7]
[344869783,1733847041605,-500.0,0.00029863,7]
[344869785,1733847041614,-500.0,0.00029863,7]
[344869787,1733847041623,-500.0,0.00029863,7]
[344869789,1733847041633,-296.834979,0.00029863,7]
[344869791,1733847041642,-500.0,0.00029863,7]
[344869793,1733847041654,-500.0,0.00029863,7]
[344869795,1733847041663,-346.03378399,0.00029863,7]
[344869797,1733847041673,-500.0,0.00029863,7]
[344869799,1733847041682,-500.0,0.00029863,7]
[344869800,1733847041692,-151.30391335,0.00029863,7]
[344869801,1733847041705,-518.59253586,0.00029863,7]
[344869802,1733847041721,-503.05244637,0.00029863,7]
[344869803,1733847041730,-500.0,0.00029863,7]
[344869804,1733847041740,-500.0,0.00029863,7]
[344869805,1733847041750,-500.0,0.00029863,7]
[344869806,1733847041759,-441.60746374,0.00029863,7]
[344869807,1733847041769,-500.0,0.00029863,7]
[344869808,1733847041779,-500.0,0.00029863,7]
[344869809,1733847041789,-500.0,0.00029863,7]
[344869811,1733847041865,-500.0,0.00029863,7]
[344869813,1733847041875,-500.0,0.00029863,7]
[344869815,1733847041884,-354.69726179,0.00029863,7]
[344869817,1733847041894,-370.01602802,0.00029863,7]
[344869819,1733847041903,-500.0,0.00029863,7]
[344869821,1733847041917,-501.25739902,0.00029863,7]
[344869823,1733847041926,-500.0,0.00029863,7]
[344869825,1733847041935,-500.0,0.00029863,7]
[344869826,1733847041944,-509.17900582,0.00029863,7]
[344869827,1733847041954,-500.0,0.00029863,7]
[344869828,1733847041969,-502.83061783,0.00029863,7]
[344869829,1733847041978,-500.0,0.00029863,7]
[344869830,1733847041988,-500.0,0.00029863,7]
[344869831,1733847041997,-484.01309,0.00029863,7]
[344869832,1733847042008,-500.0,0.00029863,7]
[344869833,1733847042019,-500.0,0.00029863,7]
[344869834,1733847042028,-500.0,0.00029863,7]
[344869835,1733847042038,-503.67835064,0.00029863,7]
[344869836,1733847042048,-500.0,0.00029863,7]
[344869837,1733847042057,-179.95765348,0.00029863,7]
[344869838,1733847042066,-500.0,0.00029863,7]
[344869839,1733847042075,-500.0,0.00029863,7]
[344869840,1733847042085,-500.0,0.00029863,7]
[344869841,1733847042094,-500.0,0.00029863,7]
[344869842,1733847042103,-500.0,0.00029863,7]
[344869843,1733847042112,-500.0,0.00029863,7]
[344869844,1733847042122,-500.0,0.00029863,7]
[344869845,1733847042131,-500.0,0.00029863,7]
[344869846,1733847042141,-468.3733103,0.00029863,7]
[344869847,1733847042151,-500.0,0.00029863,7]
[344869848,1733847042160,-500.0,0.00029863,7]
[344869849,1733847042169,-500.0,0.00029863,7]
[344869850,1733847042179,-503.3937375,0.00029863,7]
[344869851,1733847042188,-500.0,0.00029863,7]
[344869852,1733847042197,-500.0,0.00029863,7]
[344869853,1733847042206,-505.68528572,0.00029863,7]
[344869854,1733847042221,-501.08073727,0.00029863,7]
[344869855,1733847042230,-500.0,0.00029863,7]